[Event "Titled Tuesday Blitz November 29 Early 2022"]
[White "Devaev, Alexander"]
[Black "Ismayil, Malak"]
[WhiteFideId "4169395"]
[BlackFideId "13412604"]
[WhiteElo "2225"]
[BlackElo "1879"]
[Result "0-1"]
[Round "05"]
[TimeControl "180+1"]
[Date "2022.11.30"]
[WhiteClock "0:00:12"]
[BlackClock "0:00:03"]

1. d4 {[%clk 0:03:00]}  Nf6 {[%clk 0:02:57]} 2. c4 {[%clk 0:02:58]}  g6 {[%clk 0:02:57]} 3. Nc3 {[%clk 0:02:57]}  Bg7 {[%clk 0:02:58]} 4. e4 {[%clk 0:02:57]}  O-O {[%clk 0:02:59]} 5. Nf3 {[%clk 0:02:57]}  d6 {[%clk 0:02:59]} 6. h3 {[%clk 0:02:58]}  Nc6 {[%clk 0:02:58]} 7. Bg5 {[%clk 0:02:57]}  h6 {[%clk 0:02:57]} 8. Be3 {[%clk 0:02:58]}  e5 {[%clk 0:02:57]} 9. d5 {[%clk 0:02:58]}  Ne7 {[%clk 0:02:57]} 10. g4 {[%clk 0:02:59]}  c6 {[%clk 0:02:37]} 11. Rg1 {[%clk 0:02:59]}  Ne8 {[%clk 0:02:31]} 12. h4 {[%clk 0:02:57]}  cxd5 {[%clk 0:02:29]} 13. cxd5 {[%clk 0:02:57]}  a6 {[%clk 0:02:28]} 14. h5 {[%clk 0:02:57]}  g5 {[%clk 0:02:28]} 15. Nd2 {[%clk 0:02:57]}  b5 {[%clk 0:02:25]} 16. a3 {[%clk 0:02:57]}  Bd7 {[%clk 0:02:13]} 17. b4 {[%clk 0:02:58]}  Nf6 {[%clk 0:02:13]} 18. f3 {[%clk 0:02:54]}  Rc8 {[%clk 0:02:12]} 19. Rc1 {[%clk 0:02:52]}  Qe8 {[%clk 0:02:11]} 20. Nb3 {[%clk 0:02:51]}  Rc7 {[%clk 0:02:00]} 21. Be2 {[%clk 0:02:45]}  Qc8 {[%clk 0:02:00]} 22. Qd2 {[%clk 0:02:45]}  Qb8 {[%clk 0:01:49]} 23. Kf2 {[%clk 0:02:45]}  Rfc8 {[%clk 0:01:49]} 24. Na2 {[%clk 0:02:45]}  Bxg4 {[%clk 0:01:41]} 25. Rxg4 {[%clk 0:02:20]}  Nxg4+ {[%clk 0:01:39]} 26. fxg4 {[%clk 0:02:21]}  Rxc1 {[%clk 0:01:36]} 27. Naxc1 {[%clk 0:02:10]}  Qc7 {[%clk 0:01:10]} 28. Na5 {[%clk 0:02:01]}  Kf8 {[%clk 0:01:08]} 29. Bd3 {[%clk 0:01:29]}  Qd7 {[%clk 0:01:03]} 30. Kf3 {[%clk 0:01:22]}  Ng8 {[%clk 0:00:48]} 31. Kg3 {[%clk 0:01:15]}  Nf6 {[%clk 0:00:47]} 32. Qe2 {[%clk 0:01:16]}  Rc3 {[%clk 0:00:35]} 33. Nab3 {[%clk 0:01:11]}  Qc8 {[%clk 0:00:28]} 34. Bd2 {[%clk 0:01:05]}  Rc7 {[%clk 0:00:26]} 35. Qd1 {[%clk 0:00:51]}  Qa8 {[%clk 0:00:20]} 36. Qf3 {[%clk 0:00:28]}  Re7 {[%clk 0:00:15]} 37. Na5 {[%clk 0:00:27]}  Qe8 {[%clk 0:00:04]} 38. Nc6 {[%clk 0:00:23]}  Rc7 {[%clk 0:00:05]} 39. Nb3 {[%clk 0:00:22]}  Ng8 {[%clk 0:00:03]} 40. Qe3 {[%clk 0:00:19]}  Ne7 {[%clk 0:00:02]} 41. Nba5 {[%clk 0:00:20]}  Nxc6 {[%clk 0:00:02]} 42. Nxc6 {[%clk 0:00:19]}  Qa8 {[%clk 0:00:02]} 43. Be2 {[%clk 0:00:17]}  Rc8 {[%clk 0:00:02]} 44. Bf3 {[%clk 0:00:18]}  Qb7 {[%clk 0:00:02]} 45. Qb3 {[%clk 0:00:18]}  Bf6 {[%clk 0:00:03]} 46. Be3 {[%clk 0:00:18]}  Kg7 {[%clk 0:00:03]} 47. a4 {[%clk 0:00:17]}  Bd8 {[%clk 0:00:02]} 48. a5 {[%clk 0:00:17]}  Bf6 {[%clk 0:00:02]} 49. Qd3 {[%clk 0:00:17]}  Rc7 {[%clk 0:00:02]} 50. Be2 {[%clk 0:00:17]}  Rc8 {[%clk 0:00:02]} 51. Bd1 {[%clk 0:00:17]}  Bd8 {[%clk 0:00:02]} 52. Bb3 {[%clk 0:00:18]}  Bf6 {[%clk 0:00:02]} 53. Qe2 {[%clk 0:00:19]}  Rc7 {[%clk 0:00:03]} 54. Qf2 {[%clk 0:00:19]}  Rc8 {[%clk 0:00:03]} 55. Qf5 {[%clk 0:00:19]}  Rc7 {[%clk 0:00:04]} 56. Bb6 {[%clk 0:00:20]}  Rc8 {[%clk 0:00:04]} 57. Qf3 {[%clk 0:00:19]}  Re8 {[%clk 0:00:04]} 58. Qd3 {[%clk 0:00:20]}  Ra8 {[%clk 0:00:04]} 59. Qf1 {[%clk 0:00:19]}  Qd7 {[%clk 0:00:04]} 60. Bc2 {[%clk 0:00:17]}  Qb7 {[%clk 0:00:04]} 61. Bd3 {[%clk 0:00:18]}  Qd7 {[%clk 0:00:04]} 62. Qf3 {[%clk 0:00:18]}  Qb7 {[%clk 0:00:04]} 63. Qf5 {[%clk 0:00:19]}  Rc8 {[%clk 0:00:04]} 64. Be2 {[%clk 0:00:17]}  Re8 {[%clk 0:00:04]} 65. Qf1 {[%clk 0:00:18]}  Rc8 {[%clk 0:00:04]} 66. Kf3 {[%clk 0:00:18]}  Ra8 {[%clk 0:00:05]} 67. Bd3 {[%clk 0:00:17]}  Re8 {[%clk 0:00:05]} 68. Bxb5 {[%clk 0:00:17]}  axb5 {[%clk 0:00:05]} 69. Qxb5 {[%clk 0:00:18]}  Ra8 {[%clk 0:00:05]} 70. a6 {[%clk 0:00:19]}  Rxa6 {[%clk 0:00:04]} 71. Qc4 {[%clk 0:00:10]}  Rxb6 {[%clk 0:00:04]} 72. Na5 {[%clk 0:00:11]}  Rxb4 {[%clk 0:00:03]} 73. Qc6 {[%clk 0:00:11]}  Qb5 {[%clk 0:00:01]} 74. Qxb5 {[%clk 0:00:11]}  Rxb5 {[%clk 0:00:02]} 75. Nc6 {[%clk 0:00:12]}  Rb3+ {[%clk 0:00:03]} 76. Kf2 {[%clk 0:00:12]}  Kf8 {[%clk 0:00:03]} 77. Na5 {[%clk 0:00:11]}  Rb2+ {[%clk 0:00:03]} 78. Kf3 {[%clk 0:00:11]}  Ra2 {[%clk 0:00:03]} 79. Nc4 {[%clk 0:00:11]}  Be7 {[%clk 0:00:03]} 80. Nb6 {[%clk 0:00:11]}  Ra3+ {[%clk 0:00:03]} 81. Kf2 {[%clk 0:00:11]}  Bd8 {[%clk 0:00:03]} 82. Nc4 {[%clk 0:00:12]}  Ra6 {[%clk 0:00:04]} 83. Ne3 {[%clk 0:00:11]}  Bb6 {[%clk 0:00:03]} 84. Kf3 {[%clk 0:00:12]}  Ra3 {[%clk 0:00:03]} 0-1


[Site "https://www.chess.com"]

[Event "Titled Tuesday Blitz November 29 Early 2022"]
[White "Donskov, Anatoly"]
[Black "Sellitti, Federico"]
[WhiteFideId "24143413"]
[BlackFideId "821829"]
[WhiteElo "2219"]
[BlackElo "2597"]
[Result "0-1"]
[Round "05"]
[TimeControl "180+1"]
[Date "2022.11.30"]
[WhiteClock "0:00:02"]
[BlackClock "0:00:43"]

1. e4 {[%clk 0:03:00]}  c5 {[%clk 0:03:00]} 2. Nf3 {[%clk 0:03:00]}  Nf6 {[%clk 0:03:00]} 3. Nc3 {[%clk 0:03:00]}  d5 {[%clk 0:03:01]} 4. exd5 {[%clk 0:02:53]}  Nxd5 {[%clk 0:03:02]} 5. Bc4 {[%clk 0:02:41]}  Nxc3 {[%clk 0:03:01]} 6. bxc3 {[%clk 0:02:41]}  e6 {[%clk 0:03:01]} 7. O-O {[%clk 0:02:41]}  Be7 {[%clk 0:03:01]} 8. d4 {[%clk 0:02:41]}  O-O {[%clk 0:03:00]} 9. Qe2 {[%clk 0:02:39]}  Bf6 {[%clk 0:02:56]} 10. Rd1 {[%clk 0:02:39]}  Qc7 {[%clk 0:02:52]} 11. Bd3 {[%clk 0:02:34]}  Nc6 {[%clk 0:02:42]} 12. h4 {[%clk 0:02:20]}  Rd8 {[%clk 0:02:06]} 13. Bg5 {[%clk 0:01:57]}  Bxg5 {[%clk 0:02:00]} 14. Bxh7+ {[%clk 0:01:36]}  Kxh7 {[%clk 0:02:01]} 15. Nxg5+ {[%clk 0:01:36]}  Kg8 {[%clk 0:02:01]} 16. Qh5 {[%clk 0:01:34]}  cxd4 {[%clk 0:01:23]} 17. cxd4 {[%clk 0:00:49]}  Qf4 {[%clk 0:01:21]} 18. Rd3 {[%clk 0:00:20]}  Qf5 {[%clk 0:01:21]} 19. Rf3 {[%clk 0:00:13]}  Qg6 {[%clk 0:01:20]} 20. Qxg6 {[%clk 0:00:07]}  fxg6 {[%clk 0:01:21]} 21. c3 {[%clk 0:00:07]}  e5 {[%clk 0:01:19]} 22. Re1 {[%clk 0:00:06]}  exd4 {[%clk 0:01:16]} 23. cxd4 {[%clk 0:00:07]}  Nxd4 {[%clk 0:01:15]} 24. Rf7 {[%clk 0:00:06]}  Nc6 {[%clk 0:01:05]} 25. Re3 {[%clk 0:00:03]}  Bd7 {[%clk 0:00:47]} 26. Kh2 {[%clk 0:00:02]}  b5 {[%clk 0:00:45]} 27. Rd3 {[%clk 0:00:02]}  Ne5 {[%clk 0:00:43]} 0-1


[Site "https://www.chess.com"]

[Event "Titled Tuesday Blitz November 29 Early 2022"]
[White "Dudzinski, Pawel"]
[Black "Malyi, Viacheslav"]
[WhiteFideId "1117890"]
[BlackFideId "14123983"]
[WhiteElo "2086"]
[BlackElo "2291"]
[Result "1-0"]
[Round "05"]
[TimeControl "180+1"]
[Date "2022.11.30"]
[WhiteClock "0:00:59"]
[BlackClock "0:01:03"]

1. e4 {[%clk 0:02:53]}  e5 {[%clk 0:02:57]} 2. Nc3 {[%clk 0:02:52]}  Nf6 {[%clk 0:02:56]} 3. g3 {[%clk 0:02:52]}  d5 {[%clk 0:02:53]} 4. exd5 {[%clk 0:02:53]}  Nxd5 {[%clk 0:02:53]} 5. Bg2 {[%clk 0:02:53]}  Nxc3 {[%clk 0:02:53]} 6. bxc3 {[%clk 0:02:54]}  Bd6 {[%clk 0:02:53]} 7. Nf3 {[%clk 0:02:55]}  O-O {[%clk 0:02:53]} 8. O-O {[%clk 0:02:55]}  c6 {[%clk 0:02:49]} 9. Re1 {[%clk 0:02:56]}  Re8 {[%clk 0:02:49]} 10. d4 {[%clk 0:02:55]}  exd4 {[%clk 0:02:46]} 11. Rxe8+ {[%clk 0:02:56]}  Qxe8 {[%clk 0:02:45]} 12. cxd4 {[%clk 0:02:57]}  Bg4 {[%clk 0:02:33]} 13. Rb1 {[%clk 0:02:33]}  Qc8 {[%clk 0:02:24]} 14. c4 {[%clk 0:02:27]}  Nd7 {[%clk 0:02:23]} 15. Be3 {[%clk 0:02:26]}  Qc7 {[%clk 0:02:16]} 16. Qb3 {[%clk 0:02:16]}  Rb8 {[%clk 0:02:14]} 17. c5 {[%clk 0:02:16]}  Be7 {[%clk 0:02:00]} 18. Bf4 {[%clk 0:02:15]}  Qc8 {[%clk 0:01:26]} 19. Bxb8 {[%clk 0:02:14]}  Qxb8 {[%clk 0:01:27]} 20. Qxb7 {[%clk 0:02:14]}  Qd8 {[%clk 0:01:25]} 21. Qxa7 {[%clk 0:02:09]}  h5 {[%clk 0:01:24]} 22. Ne5 {[%clk 0:01:29]}  Nxe5 {[%clk 0:01:19]} 23. Rb8 {[%clk 0:01:21]}  Bc8 {[%clk 0:01:18]} 24. dxe5 {[%clk 0:01:17]}  Kh7 {[%clk 0:01:06]} 25. Rxc8 {[%clk 0:01:07]}  Qxc8 {[%clk 0:01:06]} 26. Qxe7 {[%clk 0:01:04]}  Qf5 {[%clk 0:01:07]} 27. Bxc6 {[%clk 0:01:00]}  Qxe5 {[%clk 0:01:03]} 28. Qxe5 {[%clk 0:00:59]} 1-0


[Site "https://www.chess.com"]

[Event "Titled Tuesday Blitz November 29 Early 2022"]
[White "Dushyant Sharma"]
[Black "Corrales Jimenez, Fidel"]
[WhiteFideId "25065130"]
[BlackFideId "3506690"]
[WhiteElo "2270"]
[BlackElo "2541"]
[Result "0-1"]
[Round "05"]
[TimeControl "180+1"]
[Date "2022.11.30"]
[WhiteClock "0:01:05"]
[BlackClock "0:01:28"]

1. e4 {[%clk 0:03:00]}  c5 {[%clk 0:02:59]} 2. Nf3 {[%clk 0:03:01]}  d6 {[%clk 0:02:59]} 3. d4 {[%clk 0:03:01]}  cxd4 {[%clk 0:03:00]} 4. Nxd4 {[%clk 0:03:02]}  Nf6 {[%clk 0:03:00]} 5. Nc3 {[%clk 0:03:02]}  a6 {[%clk 0:03:01]} 6. f4 {[%clk 0:03:02]}  Qc7 {[%clk 0:02:58]} 7. Nf3 {[%clk 0:03:02]}  Nbd7 {[%clk 0:02:57]} 8. Bd3 {[%clk 0:03:02]}  g6 {[%clk 0:02:57]} 9. a4 {[%clk 0:03:02]}  Bg7 {[%clk 0:02:57]} 10. O-O {[%clk 0:03:03]}  O-O {[%clk 0:02:57]} 11. Kh1 {[%clk 0:03:03]}  Nc5 {[%clk 0:02:56]} 12. Qe1 {[%clk 0:03:04]}  b6 {[%clk 0:02:54]} 13. Bd2 {[%clk 0:03:00]}  Bb7 {[%clk 0:02:54]} 14. b4 {[%clk 0:02:59]}  Nxd3 {[%clk 0:02:49]} 15. cxd3 {[%clk 0:03:00]}  Rac8 {[%clk 0:02:47]} 16. Rc1 {[%clk 0:02:59]}  Qd7 {[%clk 0:02:47]} 17. Qf2 {[%clk 0:02:59]}  b5 {[%clk 0:02:41]} 18. axb5 {[%clk 0:02:39]}  axb5 {[%clk 0:02:42]} 19. Qb6 {[%clk 0:02:39]}  Rc6 {[%clk 0:02:32]} 20. Qf2 {[%clk 0:02:23]}  Rfc8 {[%clk 0:02:31]} 21. Nd4 {[%clk 0:02:22]}  Ng4 {[%clk 0:02:28]} 22. Qg1 {[%clk 0:02:22]}  Ra6 {[%clk 0:02:09]} 23. h3 {[%clk 0:02:21]}  Nf6 {[%clk 0:02:04]} 24. Ndxb5 {[%clk 0:02:14]}  d5 {[%clk 0:02:03]} 25. e5 {[%clk 0:02:13]}  d4 {[%clk 0:02:03]} 26. exf6 {[%clk 0:01:55]}  dxc3 {[%clk 0:02:01]} 27. fxg7 {[%clk 0:01:48]}  cxd2 {[%clk 0:01:56]} 28. Rxc8+ {[%clk 0:01:46]}  Qxc8 {[%clk 0:01:57]} 29. Kh2 {[%clk 0:01:37]}  d1=Q {[%clk 0:01:28]} 30. Rxd1 {[%clk 0:01:35]}  Ra2 {[%clk 0:01:28]} 31. Qb6 {[%clk 0:01:05]} 0-1


[Site "https://www.chess.com"]

[Event "Titled Tuesday Blitz November 29 Early 2022"]
[White "Dzhaparov, Medet"]
[Black "Grabinsky, Vladimir"]
[WhiteFideId "13803689"]
[BlackFideId "14107074"]
[WhiteElo "1702"]
[BlackElo "2198"]
[Result "0-1"]
[Round "05"]
[TimeControl "180+1"]
[Date "2022.11.30"]
[WhiteClock "0:00:47"]
[BlackClock "0:00:11"]

1. e4 {[%clk 0:02:52]}  c5 {[%clk 0:02:59]} 2. Nf3 {[%clk 0:02:52]}  Nc6 {[%clk 0:02:50]} 3. d4 {[%clk 0:02:52]}  cxd4 {[%clk 0:02:51]} 4. Nxd4 {[%clk 0:02:53]}  e5 {[%clk 0:02:51]} 5. Nb5 {[%clk 0:02:53]}  d6 {[%clk 0:02:51]} 6. N1c3 {[%clk 0:02:52]}  a6 {[%clk 0:02:48]} 7. Na3 {[%clk 0:02:52]}  b5 {[%clk 0:02:49]} 8. Nd5 {[%clk 0:02:49]}  Nge7 {[%clk 0:02:50]} 9. Bg5 {[%clk 0:02:47]}  f6 {[%clk 0:02:49]} 10. Bh4 {[%clk 0:02:47]}  Nxd5 {[%clk 0:02:45]} 11. Qxd5 {[%clk 0:02:45]}  Bb7 {[%clk 0:02:42]} 12. c3 {[%clk 0:02:42]}  Ne7 {[%clk 0:02:27]} 13. Qd3 {[%clk 0:02:39]}  Ng6 {[%clk 0:02:26]} 14. Bg3 {[%clk 0:02:37]}  Be7 {[%clk 0:02:23]} 15. Be2 {[%clk 0:02:37]}  O-O {[%clk 0:02:23]} 16. O-O {[%clk 0:02:36]}  Qd7 {[%clk 0:02:15]} 17. h3 {[%clk 0:02:24]}  f5 {[%clk 0:02:08]} 18. Bf3 {[%clk 0:02:17]}  f4 {[%clk 0:02:05]} 19. Bh2 {[%clk 0:02:15]}  Nh4 {[%clk 0:01:55]} 20. Bg4 {[%clk 0:02:13]}  Qc6 {[%clk 0:01:55]} 21. Rfe1 {[%clk 0:02:08]}  Rf6 {[%clk 0:01:39]} 22. Bf3 {[%clk 0:01:58]}  Rg6 {[%clk 0:01:37]} 23. Kh1 {[%clk 0:01:55]}  Rf8 {[%clk 0:01:21]} 24. Nc2 {[%clk 0:01:49]}  Rg5 {[%clk 0:00:52]} 25. Nb4 {[%clk 0:01:39]}  Qb6 {[%clk 0:00:50]} 26. Rad1 {[%clk 0:01:37]}  Qxf2 {[%clk 0:00:41]} 27. Re2 {[%clk 0:01:23]}  Qb6 {[%clk 0:00:32]} 28. Nd5 {[%clk 0:01:22]}  Bxd5 {[%clk 0:00:29]} 29. Qxd5+ {[%clk 0:01:23]}  Kh8 {[%clk 0:00:28]} 30. Bg1 {[%clk 0:01:18]}  Qb8 {[%clk 0:00:21]} 31. Rf1 {[%clk 0:01:11]}  Qc8 {[%clk 0:00:17]} 32. Rd2 {[%clk 0:01:06]}  Rg3 {[%clk 0:00:17]} 33. Bh2 {[%clk 0:01:03]}  Nxf3 {[%clk 0:00:16]} 34. Bxg3 {[%clk 0:00:55]}  Nxd2 {[%clk 0:00:12]} 35. Qxd2 {[%clk 0:00:52]}  fxg3 {[%clk 0:00:12]} 36. Rg1 {[%clk 0:00:50]}  Rf2 {[%clk 0:00:11]} 37. Qe3 {[%clk 0:00:47]}  Qxh3+ {[%clk 0:00:11]} 0-1


[Site "https://www.chess.com"]

[Event "Titled Tuesday Blitz November 29 Early 2022"]
[White "Estrada Nieto, Julian"]
[Black "Havas, Ladislav"]
[WhiteFideId "5101018"]
[BlackFideId "14501090"]
[WhiteElo "2221"]
[BlackElo "2199"]
[Result "1/2-1/2"]
[Round "05"]
[TimeControl "180+1"]
[Date "2022.11.30"]
[WhiteClock "0:00:08"]
[BlackClock "0:01:06"]

1. e4 {[%clk 0:03:00]}  Nf6 {[%clk 0:02:59]} 2. e5 {[%clk 0:02:56]}  Nd5 {[%clk 0:02:58]} 3. d4 {[%clk 0:02:57]}  d6 {[%clk 0:02:58]} 4. Nf3 {[%clk 0:02:57]}  Bg4 {[%clk 0:02:58]} 5. Be2 {[%clk 0:02:57]}  c6 {[%clk 0:02:57]} 6. O-O {[%clk 0:02:51]}  Bxf3 {[%clk 0:02:57]} 7. Bxf3 {[%clk 0:02:51]}  dxe5 {[%clk 0:02:58]} 8. dxe5 {[%clk 0:02:51]}  e6 {[%clk 0:02:58]} 9. Qe2 {[%clk 0:02:47]}  Nd7 {[%clk 0:02:57]} 10. Nd2 {[%clk 0:02:43]}  Qc7 {[%clk 0:02:56]} 11. Re1 {[%clk 0:02:42]}  Ne7 {[%clk 0:02:52]} 12. Nc4 {[%clk 0:02:26]}  Ng6 {[%clk 0:02:51]} 13. a4 {[%clk 0:02:23]}  a5 {[%clk 0:02:45]} 14. g3 {[%clk 0:02:19]}  Be7 {[%clk 0:02:44]} 15. Bg2 {[%clk 0:02:15]}  O-O {[%clk 0:02:44]} 16. h4 {[%clk 0:02:11]}  Rfd8 {[%clk 0:02:40]} 17. h5 {[%clk 0:02:08]}  Ngf8 {[%clk 0:02:40]} 18. h6 {[%clk 0:02:08]}  g6 {[%clk 0:02:36]} 19. Qg4 {[%clk 0:01:57]}  Rab8 {[%clk 0:02:30]} 20. Bg5 {[%clk 0:01:46]}  f6 {[%clk 0:02:19]} 21. exf6 {[%clk 0:01:39]}  Nxf6 {[%clk 0:02:19]} 22. Qh4 {[%clk 0:01:32]}  Nd5 {[%clk 0:02:02]} 23. Bxd5 {[%clk 0:01:06]}  Bxg5 {[%clk 0:01:59]} 24. Rxe6 {[%clk 0:01:00]}  cxd5 {[%clk 0:01:50]} 25. Qxg5 {[%clk 0:00:52]}  Nxe6 {[%clk 0:01:50]} 26. Qf6 {[%clk 0:00:49]}  Qf7 {[%clk 0:01:49]} 27. Qxf7+ {[%clk 0:00:46]}  Kxf7 {[%clk 0:01:49]} 28. Nxa5 {[%clk 0:00:47]}  Rdc8 {[%clk 0:01:46]} 29. c3 {[%clk 0:00:46]}  b6 {[%clk 0:01:44]} 30. Nb3 {[%clk 0:00:46]}  d4 {[%clk 0:01:43]} 31. cxd4 {[%clk 0:00:45]}  Rc2 {[%clk 0:01:41]} 32. d5 {[%clk 0:00:44]}  Ng5 {[%clk 0:01:38]} 33. Nd4 {[%clk 0:00:44]}  Rxb2 {[%clk 0:01:32]} 34. Rc1 {[%clk 0:00:43]}  Rd2 {[%clk 0:01:26]} 35. Rc7+ {[%clk 0:00:40]}  Kg8 {[%clk 0:01:23]} 36. Nc6 {[%clk 0:00:26]}  Rf8 {[%clk 0:01:20]} 37. f4 {[%clk 0:00:18]}  Nf3+ {[%clk 0:01:14]} 38. Kf1 {[%clk 0:00:19]}  Re8 {[%clk 0:01:11]} 39. Ne7+ {[%clk 0:00:13]}  Kf8 {[%clk 0:01:11]} 40. d6 {[%clk 0:00:13]}  Rxd6 {[%clk 0:01:10]} 41. Kf2 {[%clk 0:00:12]}  Rxe7 {[%clk 0:01:08]} 42. Rc8+ {[%clk 0:00:12]}  Kf7 {[%clk 0:01:08]} 43. Kxf3 {[%clk 0:00:11]}  Re8 {[%clk 0:01:08]} 44. Rc7+ {[%clk 0:00:11]}  Re7 {[%clk 0:01:08]} 45. Rc8 {[%clk 0:00:12]}  Rd3+ {[%clk 0:01:08]} 46. Kg4 {[%clk 0:00:11]}  Ree3 {[%clk 0:01:08]} 47. Rc7+ {[%clk 0:00:11]}  Kf6 {[%clk 0:01:08]} 48. Rc6+ {[%clk 0:00:11]}  Ke7 {[%clk 0:01:08]} 49. f5 {[%clk 0:00:07]}  Rxg3+ {[%clk 0:01:07]} 50. Kf4 {[%clk 0:00:08]}  Rgf3+ {[%clk 0:01:07]} 51. Ke4 {[%clk 0:00:08]}  Rde3+ {[%clk 0:01:07]} 52. Kd4 {[%clk 0:00:08]}  Rd3+ {[%clk 0:01:07]} 53. Ke4 {[%clk 0:00:08]}  Rfe3+ {[%clk 0:01:07]} 54. Kf4 {[%clk 0:00:08]}  Rf3+ {[%clk 0:01:06]} 55. Ke4 {[%clk 0:00:08]} 1/2-1/2


[Site "https://www.chess.com"]

[Event "Titled Tuesday Blitz November 29 Early 2022"]
[White "Fedoseev, Vladimir"]
[Black "Arabidze, Meri"]
[WhiteFideId "24130737"]
[BlackFideId "13604040"]
[WhiteElo "3016"]
[BlackElo "2679"]
[Result "1-0"]
[Round "05"]
[TimeControl "180+1"]
[Date "2022.11.30"]
[WhiteClock "0:02:12"]
[BlackClock "0:01:27"]

1. e4 {[%clk 0:03:00]}  c5 {[%clk 0:02:56]} 2. Nf3 {[%clk 0:03:00]}  e6 {[%clk 0:02:56]} 3. d4 {[%clk 0:02:58]}  cxd4 {[%clk 0:02:56]} 4. Nxd4 {[%clk 0:02:56]}  Nc6 {[%clk 0:02:56]} 5. Nc3 {[%clk 0:02:56]}  a6 {[%clk 0:02:56]} 6. Nxc6 {[%clk 0:02:53]}  bxc6 {[%clk 0:02:57]} 7. Bd3 {[%clk 0:02:52]}  d5 {[%clk 0:02:57]} 8. O-O {[%clk 0:02:53]}  Nf6 {[%clk 0:02:58]} 9. Qe2 {[%clk 0:02:53]}  Be7 {[%clk 0:02:58]} 10. b3 {[%clk 0:02:45]}  O-O {[%clk 0:02:57]} 11. Bb2 {[%clk 0:02:46]}  Bb7 {[%clk 0:02:56]} 12. Rad1 {[%clk 0:02:45]}  Re8 {[%clk 0:02:56]} 13. Na4 {[%clk 0:02:44]}  Qc7 {[%clk 0:02:52]} 14. e5 {[%clk 0:02:43]}  Nd7 {[%clk 0:02:52]} 15. c4 {[%clk 0:02:44]}  g6 {[%clk 0:02:39]} 16. f4 {[%clk 0:02:41]}  Nc5 {[%clk 0:02:36]} 17. Nxc5 {[%clk 0:02:40]}  Bxc5+ {[%clk 0:02:37]} 18. Kh1 {[%clk 0:02:40]}  a5 {[%clk 0:02:37]} 19. f5 {[%clk 0:02:29]}  exf5 {[%clk 0:02:28]} 20. Bxf5 {[%clk 0:02:29]}  dxc4 {[%clk 0:02:18]} 21. Qxc4 {[%clk 0:02:23]}  Ba6 {[%clk 0:02:08]} 22. Qxc5 {[%clk 0:02:20]}  Bxf1 {[%clk 0:02:08]} 23. Rd7 {[%clk 0:02:15]}  Qb8 {[%clk 0:01:42]} 24. e6 {[%clk 0:02:15]}  fxe6 {[%clk 0:01:33]} 25. Rg7+ {[%clk 0:02:13]}  Kh8 {[%clk 0:01:27]} 26. Re7+ {[%clk 0:02:12]} 1-0


[Site "https://www.chess.com"]

[Event "Titled Tuesday Blitz November 29 Early 2022"]
[White "Fernandez, Michael"]
[Black "Floresvillar Gonzalez, Luis Migu"]
[WhiteFideId "5803560"]
[BlackFideId "5100542"]
[WhiteElo "2110"]
[BlackElo "2040"]
[Result "1-0"]
[Round "05"]
[TimeControl "180+1"]
[Date "2022.11.30"]
[WhiteClock "0:01:36"]
[BlackClock "0:00:01"]

1. e4 {[%clk 0:02:34]}  e6 {[%clk 0:02:46]} 2. d4 {[%clk 0:02:34]}  d5 {[%clk 0:02:33]} 3. Nc3 {[%clk 0:02:34]}  dxe4 {[%clk 0:02:28]} 4. Nxe4 {[%clk 0:02:34]}  Nd7 {[%clk 0:02:29]} 5. Nf3 {[%clk 0:02:31]}  Ngf6 {[%clk 0:02:27]} 6. Bd3 {[%clk 0:02:32]}  Nxe4 {[%clk 0:02:26]} 7. Bxe4 {[%clk 0:02:33]}  Be7 {[%clk 0:02:25]} 8. c3 {[%clk 0:02:31]}  O-O {[%clk 0:02:23]} 9. O-O {[%clk 0:02:26]}  c5 {[%clk 0:02:14]} 10. Be3 {[%clk 0:02:21]}  cxd4 {[%clk 0:02:14]} 11. Nxd4 {[%clk 0:02:19]}  Nf6 {[%clk 0:02:08]} 12. Bf3 {[%clk 0:02:19]}  e5 {[%clk 0:02:02]} 13. Nb5 {[%clk 0:02:14]}  a6 {[%clk 0:02:01]} 14. Qxd8 {[%clk 0:02:06]}  Rxd8 {[%clk 0:02:00]} 15. Nc7 {[%clk 0:02:06]}  Rb8 {[%clk 0:01:53]} 16. Ba7 {[%clk 0:02:06]}  Bf5 {[%clk 0:01:42]} 17. Bxb8 {[%clk 0:02:05]}  Rxb8 {[%clk 0:01:41]} 18. Nd5 {[%clk 0:02:05]}  Nxd5 {[%clk 0:01:35]} 19. Bxd5 {[%clk 0:02:06]}  b5 {[%clk 0:01:23]} 20. Rad1 {[%clk 0:02:03]}  Kf8 {[%clk 0:00:42]} 21. Rfe1 {[%clk 0:01:57]}  f6 {[%clk 0:00:41]} 22. Be4 {[%clk 0:01:56]}  Be6 {[%clk 0:00:38]} 23. a3 {[%clk 0:01:56]}  Bb3 {[%clk 0:00:35]} 24. Rd7 {[%clk 0:01:52]}  Bc4 {[%clk 0:00:31]} 25. Bxh7 {[%clk 0:01:48]}  a5 {[%clk 0:00:28]} 26. Bg6 {[%clk 0:01:45]}  b4 {[%clk 0:00:26]} 27. axb4 {[%clk 0:01:46]}  axb4 {[%clk 0:00:26]} 28. cxb4 {[%clk 0:01:44]}  Rxb4 {[%clk 0:00:23]} 29. Ra1 {[%clk 0:01:40]}  Rb8 {[%clk 0:00:01]} 30. h4 {[%clk 0:01:36]} 1-0


[Site "https://www.chess.com"]

[Event "Titled Tuesday Blitz November 29 Early 2022"]
[White "Fernandez Siles, Luis"]
[Black "Cardoso Cardoso, Jose Gabriel"]
[WhiteFideId "2209420"]
[BlackFideId "4430492"]
[WhiteElo "2186"]
[BlackElo "2484"]
[Result "0-1"]
[Round "05"]
[TimeControl "180+1"]
[Date "2022.11.30"]
[WhiteClock "0:00:08"]
[BlackClock "0:00:14"]

1. d4 {[%clk 0:03:00]}  g6 {[%clk 0:02:54]} 2. c4 {[%clk 0:02:59]}  Bg7 {[%clk 0:02:54]} 3. Nf3 {[%clk 0:02:59]}  d6 {[%clk 0:02:55]} 4. Nc3 {[%clk 0:02:59]}  Nd7 {[%clk 0:02:55]} 5. e4 {[%clk 0:02:58]}  e5 {[%clk 0:02:56]} 6. Be2 {[%clk 0:02:55]}  Ne7 {[%clk 0:02:53]} 7. O-O {[%clk 0:02:55]}  O-O {[%clk 0:02:53]} 8. Rb1 {[%clk 0:02:51]}  exd4 {[%clk 0:02:52]} 9. Nxd4 {[%clk 0:02:50]}  Nc6 {[%clk 0:02:52]} 10. Be3 {[%clk 0:02:44]}  Re8 {[%clk 0:02:53]} 11. f4 {[%clk 0:02:28]}  Nc5 {[%clk 0:02:21]} 12. Bf3 {[%clk 0:02:21]}  Bd7 {[%clk 0:02:07]} 13. Nxc6 {[%clk 0:02:12]}  Bxc6 {[%clk 0:02:05]} 14. e5 {[%clk 0:02:13]}  Nd7 {[%clk 0:01:52]} 15. Bxc6 {[%clk 0:01:59]}  bxc6 {[%clk 0:01:52]} 16. Qf3 {[%clk 0:01:52]}  dxe5 {[%clk 0:01:49]} 17. Qxc6 {[%clk 0:01:49]}  exf4 {[%clk 0:01:38]} 18. Bxf4 {[%clk 0:01:47]}  Ne5 {[%clk 0:01:38]} 19. Bxe5 {[%clk 0:01:36]}  Bxe5 {[%clk 0:01:37]} 20. Nd5 {[%clk 0:01:33]}  Re6 {[%clk 0:01:09]} 21. Qb7 {[%clk 0:00:34]}  a5 {[%clk 0:00:38]} 22. Rbe1 {[%clk 0:00:26]}  Rb8 {[%clk 0:00:20]} 23. Qa7 {[%clk 0:00:14]}  Rxb2 {[%clk 0:00:17]} 24. Kh1 {[%clk 0:00:08]}  Qh4 {[%clk 0:00:14]} 0-1


[Site "https://www.chess.com"]